Workbook

Sheet паспорт
A1: ПАТ "УКРТРАНСГАЗ" | G1: ПАСПОРТ ФІЗИКО-ХІМІЧНИХ ПОКАЗНИКІВ ПРИРОДНОГО ГАЗУ № 677
A2: Філія "УМГ "ХАРКІВТРАНСГАЗ" | F2: переданого Краматорським ЛВУМГ та прийнятого ПАТ "МАРІУПОЛЬГАЗ",
E3: ПРАТ "ММК ІЛЛІЧА", ПРАТ "МК АЗОВСТАЛЬ", ДП "УКРАВТОГАЗ"
A4: Сєвєродонецьке ЛВУМГ | G4: Маршрут № 677
A5: Вимірювальна хіміко-аналітична лабораторія
A6: Свідоцтво № РЬ089/2014 чинно до 06.06.2017 р. | H6: по газопроводу " Донецьк-Маріуполь", "Маріуполь-Бердянськ" | V6: за період з | X6: 01.02.2017 р. | Z6: по | AA6: 28.02.2017 р.
A8: Число місяця | B8: Компонентний склад, мол. % | N8: Фізико-хімічні показники газу обчислені на основі компонентного складу, 101,325 кПа | X8: Температура точки роси за вологою (Р = 3.92 МПа), °С | Y8: Температура точки роси за вуглеводнями, °С | Z8: Вміст сірководню, г/м3 | AA8: Вміст меркаптанової сірки, г/м3 | AB8: Вміст механічних домішок, г/м3
N9: Густина абсолютна, кг/м3,при 20 °С, | O9: Температура вимірювання/згоряння при 20/25°С
B10: метан, С1 | C10: етан, С2 | D10: пропан, С3 | E10: ізо-бутан, і-С4 | F10: н-бутан, н-С4 | G10: нео-пентан, нео-С5 | H10: ізо-пентан, і-С5 | I10: н-пентан, н-С5 | J10: гексани та вищі, С6+ | K10: кисень, О2 | L10: азот, N2 | M10: діоксид вуглецю, CО2 | O10: Теплота згоряння нижча | R10: Теплота згоряння вища | U10: Число Воббе вище
O11: ккал/м³ | P11: МДж/м³ | Q11: кВт⋅год/м³ | R11: ккал/м³ | S11: МДж/м³ | T11: кВт⋅год/м³ | U11: ккал/м³ | V11: МДж/м³ | W11: кВт⋅год/м³
A12: 1 | B12: 92.86196136 | C12: 3.52355886 | D12: 0.80750436 | E12: 0.07197198 | F12: 0.0921213 | G12: 0.01688799 | H12: 0.02089651 | I12: 0 | J12: 0.02543008 | L12: 2.32102418 | M12: 0.25866687 | N12: 0.71743566 | O12: =P12*238.8459 -> 8146.6657 | P12: 34.10845947 | Q12: =P12/3.6 -> 9.474572075 | R12: =S12*238.8459 -> 9030.066797 | S12: 37.80708313 | T12: =S12/3.6 -> 10.50196754 | U12: =V12*238.8459 -> 11700.20458 | V12: 48.98641586 | W12: =V12/3.6 -> 13.60733774 | AC12: =SUM(B12:M12)+$K$43+$N$43 -> 100.0000235
A13: 2 | B13: 92.94298553 | C13: 3.53196239 | D13: 0.83410108 | E13: 0.07953701 | F13: 0.10159017 | G13: 0.01699082 | H13: 0.02087767 | I13: 0 | J13: 0.02654473 | L13: 2.20955372 | M13: 0.23580188 | N13: 0.71731126 | O13: =P13*238.8459 -> 8164.752439 | P13: 34.18418503 | Q13: 9.495606953 | R13: =S13*238.8459 -> 9049.863716 | S13: 37.88996887 | T13: 10.52499135 | U13: 11726.87594 | V13: 49.0980835 | W13: =V13/3.6 -> 13.63835653 | AC13: 99.999945
A14: 3 | B14: 93.09378052 | C14: 3.41956973 | D14: 0.84183508 | E14: 0.08485001 | F14: 0.10532047 | G14: 0.01691863 | H14: 0.02087954 | I14: 0 | J14: 0.02661971 | L14: 2.15614581 | M14: 0.23407653 | N14: 0.71661651 | O14: 8164.767016 | P14: 34.18424606 | Q14: =P14/3.6 -> 9.495623906 | R14: 9050.055963 | S14: 37.89077377 | T14: =S14/3.6 -> 10.52521494 | U14: 11732.81192 | V14: 49.12293625 | W14: =V14/3.6 -> 13.64526007 | AC14: 99.99999603 | AD14: =IF(AC14=100,"ОК"," ") -> 
A15: 4 | B15: 93.31127167 | C15: 3.21557474 | D15: 0.79687673 | E15: 0.08328504 | F15: 0.10533313 | G15: 0.01714179 | H15: 0.02119909 | I15: 0 | J15: 0.02776255 | L15: 2.1571188 | M15: 0.2644029 | N15: 0.71526831 | O15: 8144.116373 | P15: 34.09778595 | Q15: 9.471607208 | R15: 9027.840918 | S15: 37.79776382 | T15: 10.49937884 | U15: 11715.0131 | V15: 49.04841614 | W15: 13.62456004 | AC15: 99.99996644 | AD15: =IF(AC15=100,"ОК"," ") -> 
A16: 5 | B16: 93.79843903 | C16: 2.73123646 | D16: 0.69265133 | E16: 0.07618307 | F16: 0.10204934 | G16: 0.01777752 | H16: 0.02163545 | I16: 0 | J16: 0.02982639 | L16: 2.1970439 | M16: 0.33314148 | N16: 0.71210349 | O16: 8091.166356 | P16: 33.87609482 | Q16: 9.410026339 | R16: 8970.785373 | S16: 37.55888367 | T16: 10.43302324 | U16: 11666.83373 | V16: 48.84669876 | W16: 13.56852743 | AC16: 99.99998397
A17: 6 | B17: 93.60845184 | C17: 2.79252601 | D17: 0.76698339 | E17: 0.09423395 | F17: 0.13402787 | G17: 0.01798127 | H17: 0.0218589 | I17: 0 | J17: 0.03026257 | L17: 2.17308068 | M17: 0.36055616 | N17: 0.71444088 | O17: 8113.464312 | P17: 33.9694519 | Q17: 9.435958861 | R17: 8994.669598 | S17: 37.65888214 | T17: 10.46080059 | U17: 11678.74577 | V17: 48.89657211 | W17: 13.58238114 | AC17: 99.99996264
A18: 7 | B18: 93.17412567 | C18: 3.17898726 | D18: 0.83899188 | E18: 0.09644106 | F18: 0.13334297 | G18: 0.01746842 | H18: 0.02145117 | I18: 0 | J18: 0.02954498 | L18: 2.18508053 | M18: 0.32457182 | N18: 0.71717995 | O18: 8148.343081 | P18: 34.11548233 | Q18: 9.476522869 | R18: 9032.096784 | S18: 37.81558228 | T18: 10.50432841 | U18: 11704.91692 | V18: 49.00614548 | W18: 13.61281819 | AC18: 100.0000058
A19: 8 | B19: 93.5892868 | C19: 2.91803408 | D19: 0.74087358 | E19: 0.08310458 | F19: 0.11419047 | G19: 0.01854872 | H19: 0.02263549 | I19: 0 | J19: 0.02987476 | L19: 2.21600175 | M19: 0.26745954 | N19: 0.7134726 | O19: 8116.543914 | P19: 33.98234558 | Q19: 9.439540439 | R19: 8998.116383 | S19: 37.67331314 | T19: 10.46480921 | U19: 11691.13889 | V19: 48.94845963 | W19: 13.59679434 | X19: -19.2 | Y19: -17.3 | Z19: 0.0003 | AA19: 0.004 | AB19: відс. | AC19: 100.0000098
A20: 9 | B20: 93.46528625 | C20: 3.05003309 | D20: 0.75811291 | E20: 0.07622471 | F20: 0.09794077 | G20: 0.01808465 | H20: 0.0221231 | I20: 0 | J20: 0.02921302 | L20: 2.15570092 | M20: 0.3272616 | N20: 0.7143991 | O20: 8122.285822 | P20: 34.0063858 | Q20: =P20/3.6 -> 9.446218278 | R20: 9004.260097 | S20: 37.69903564 | T20: =S20/3.6 -> 10.47195434 | U20: 11691.54343 | V20: 48.95015335 | W20: 13.59726482 | AC20: 99.99998102
A21: 10 | B21: 93.28213501 | C21: 3.20453382 | D21: 0.80645645 | E21: 0.08252586 | F21: 0.10701379 | G21: 0.01743776 | H21: 0.02128609 | I21: 0 | J21: 0.02940413 | L21: 2.10182214 | M21: 0.34734786 | N21: 0.71608269 | O21: 8143.207983 | P21: 34.0939827 | Q21: 9.47055075 | R21: 9026.782193 | S21: 37.79333115 | T21: 10.49814754 | U21: 11707.00249 | V21: 49.01487732 | W21: 13.6152437 | AC21: 99.99996291
A22: 11 | B22: 93.56228638 | C22: 2.95515966 | D22: 0.75982159 | E22: 0.0813427 | F22: 0.10962956 | G22: 0.01760343 | H22: 0.02130273 | I22: 0 | J22: 0.0302809 | L22: 2.09498692 | M22: 0.36758626 | N22: 0.71432757 | O22: 8121.322764 | P22: 34.00235367 | Q22: 9.445098242 | R22: 9003.300684 | S22: 37.69501877 | T22: 10.47083855 | U22: 11690.88651 | V22: 48.94740295 | W22: 13.59650082 | AC22: 100.0000001
A23: 12 | B23: 93.50286865 | C23: 3.00321293 | D23: 0.76492488 | E23: 0.08208881 | F23: 0.11112291 | G23: 0.01756688 | H23: 0.02138962 | I23: 0 | J23: 0.03060198 | L23: 2.11051464 | M23: 0.35567766 | N23: 0.71465826 | O23: 8125.195956 | P23: 34.01856995 | Q23: 9.449602764 | R23: 9007.439011 | S23: 37.71234512 | T23: 10.47565142 | U23: 11693.54791 | V23: 48.95854568 | W23: 13.59959602 | AC23: 99.99996896
A24: 13 | B24: 93.69041443 | C24: 2.85966229 | D24: 0.73498851 | E24: 0.08094338 | F24: 0.11058227 | G24: 0.01790786 | H24: 0.02165627 | I24: 0 | J24: 0.03046598 | L24: 2.09189463 | M24: 0.3614732 | N24: 0.7134189 | O24: 8113.321267 | P24: 33.968853 | Q24: 9.4357925 | R24: 8994.757065 | S24: 37.65924835 | T24: 10.46090232 | U24: 11687.22288 | V24: 48.93206406 | W24: 13.59224002 | AC24: 99.99998882
A25: 14 | B25: 93.95513153 | C25: 2.58614111 | D25: 0.67219073 | E25: 0.07658295 | F25: 0.10835999 | G25: 0.01830819 | H25: 0.02197589 | I25: 0 | J25: 0.03145243 | L25: 2.12039232 | M25: 0.40949833 | N25: 0.71170735 | O25: 8081.560365 | P25: 33.83587646 | Q25: 9.398854572 | R25: 8960.49513 | S25: 37.51580048 | T25: 10.42105569 | U25: 11656.70111 | V25: 48.80427551 | W25: 13.5567432 | AC25: 100.0000335
A26: 15 | B26: 93.6971817 | C26: 2.84466219 | D26: 0.70295411 | E26: 0.07679483 | F26: 0.11303253 | G26: 0.02041354 | H26: 0.02267856 | I26: 0.00486248 | J26: 0.03063436 | L26: 2.24874163 | M26: 0.23805034 | N26: 0.71246606 | O26: 8107.475489 | P26: 33.9443779 | Q26: 9.428993861 | R26: 8988.405616 | S26: 37.6326561 | T26: 10.45351558 | U26: 11686.80012 | V26: 48.93029404 | W26: 13.59174834 | AC26: 100.0000063
A27: 16 | B27: 93.61079407 | C27: 3.14286613 | D27: 0.71999943 | E27: 0.08193608 | F27: 0.12449653 | G27: 0.02103258 | H27: 0.02278486 | I27: 0.00633495 | J27: 0.03133597 | L27: 2.02046633 | M27: 0.21793264 | N27: 0.71341306 | O27: 8151.982113 | P27: 34.13071823 | Q27: =P27/3.6 -> 9.480755064 | R27: 9036.840098 | S27: 37.83544159 | T27: =S27/3.6 -> 10.50984489 | U27: 11741.90859 | V27: 49.16102219 | W27: 13.6558395 | AC27: 99.99997957
A28: 17 | B28: 94.1754303 | C28: 2.77179241 | D28: 0.67348218 | E28: 0.08111579 | F28: 0.12061442 | G28: 0.0200135 | H28: 0.02235042 | I28: 0.01164902 | J28: 0.03435893 | L28: 1.84213769 | M28: 0.24701327 | N28: 0.71023726 | O28: 8135.93356 | P28: 34.06352615 | Q28: =P28/3.6 -> 9.462090597 | R28: 9020.120957 | S28: 37.76544189 | T28: =S28/3.6 -> 10.49040053 | U28: 11746.39861 | V28: 49.17982101 | W28: 13.66106139 | AC28: 99.99995793
A29: 18 | B29: 93.97641754 | C29: 2.5420804 | D29: 0.65729511 | E29: 0.08121944 | F29: 0.10281654 | G29: 0.01859722 | H29: 0.02265221 | I29: 0.00140918 | J29: 0.03663394 | L29: 1.73012924 | M29: 0.83075374 | N29: 0.7144419 | O29: 8076.656692 | P29: 33.81534576 | Q29: 9.3931516 | R29: 8955.152293 | S29: 37.49343109 | T29: 10.41484197 | U29: 11627.52507 | V29: 48.68212128 | W29: 13.52281147 | AC29: 100.0000046
A30: 19 | B30: 94.1893 | C30: 2.7539 | D30: 0.6671 | E30: 0.0761 | F30: 0.1049 | G30: 0.0047 | H30: 0.0214 | I30: 0.0186 | J30: 0.0318 | K30: 0.0109 | L30: 1.9175 | M30: 0.2047 | N30: 0.7093 | O30: 8123.029636 | P30: 34.0095 | Q30: 9.447083333 | R30: 9001.958663 | S30: 37.6894 | T30: 10.46927778 | U30: 11730.1043 | V30: 49.1116 | W30: 13.64211111 | AC30: 100.0009
A31: 20 | L31: 1.9175 | M31: 0.2047 | N31: 0.7093 | O31: 8123.029636 | P31: 34.0095 | Q31: =P31/3.6 -> 9.447083333 | R31: 9001.958663 | S31: 37.6894 | T31: =S31/3.6 -> 10.46927778 | U31: 11730.1043 | V31: 49.1116 | W31: 13.64211111 | AC31: 2.1222 | AD31: =IF(AC31=100,"ОК"," ") -> 
A32: 21 | L32: 1.9175 | M32: 0.2047 | N32: 0.7093 | O32: 8123.029636 | P32: 34.0095 | Q32: 9.447083333 | R32: 9001.958663 | S32: 37.6894 | T32: 10.46927778 | U32: 11730.1043 | V32: 49.1116 | W32: 13.64211111 | AC32: 2.1222
A33: 22 | L33: 1.9175 | M33: 0.2047 | N33: 0.7093 | O33: 8123.029636 | P33: 34.0095 | Q33: 9.447083333 | R33: 9001.958663 | S33: 37.6894 | T33: 10.46927778 | U33: 11730.1043 | V33: 49.1116 | W33: 13.64211111 | AC33: 2.1222
A34: 23 | L34: 1.9175 | M34: 0.2047 | N34: 0.7093 | O34: 8123.029636 | P34: 34.0095 | Q34: 9.447083333 | R34: 9001.958663 | S34: 37.6894 | T34: 10.46927778 | U34: 11730.1043 | V34: 49.1116 | W34: 13.64211111 | AC34: 2.1222 | AD34: =IF(AC34=100,"ОК"," ") -> 
A35: 24 | B35: 94.06723022 | C35: 3.13743043 | D35: 0.7927112 | E35: 0.09190935 | F35: 0.10214504 | G35: 0.01506503 | H35: 0.01851287 | I35: 5.41e-06 | J35: 0.00239729 | L35: 1.45979226 | M35: 0.31283933 | N35: 0.71109915 | O35: 8182.676998 | P35: 34.25923157 | Q35: =P35/3.6 -> 9.516453214 | R35: 9071.161258 | S35: 37.97913742 | T35: =S35/3.6 -> 10.54976039 | U35: 11805.71375 | V35: 49.42816162 | W35: 13.73004489 | AC35: 100.0000384
A36: 25 | B36: 94.06173706 | C36: 3.03336883 | D36: 0.76569676 | E36: 0.08689256 | F36: 0.0964587 | G36: 0.01506929 | H36: 0.01839167 | I36: 5.41e-06 | J36: 0.00235719 | L36: 1.55393004 | M36: 0.36609519 | N36: 0.71106756 | O36: 8159.005064 | P36: 34.16012192 | Q36: =P36/3.6 -> 9.488922756 | R36: 9045.349094 | S36: 37.87106705 | T36: =S36/3.6 -> 10.51974085 | U36: 11772.43036 | V36: 49.28881073 | W36: 13.69133631 | AC36: 100.0000027
A37: 26 | B37: 94.77055359 | C37: 2.6643672 | D37: 0.71746767 | E37: 0.08337761 | F37: 0.08304898 | G37: 0.01392557 | H37: 0.01796087 | I37: 5.41e-06 | J37: 0.00219933 | L37: 1.29709971 | M37: 0.34999517 | N37: 0.70652986 | O37: 8148.178168 | P37: 34.11479187 | Q37: 9.476331075 | R37: 9034.600553 | S37: 37.82606506 | T37: 10.50724029 | U37: 11796.08771 | V37: 49.38785934 | W37: 13.71884982 | AC37: 100.0000011
A38: 27 | B38: 94.53688049 | C38: 2.87576008 | D38: 0.75191826 | E38: 0.08108789 | F38: 0.07915346 | G38: 0.01268292 | H38: 0.01644108 | I38: 5.41e-06 | J38: 0.00189585 | L38: 1.28449285 | M38: 0.35974824 | N38: 0.70804471 | O38: 8164.002583 | P38: 34.18104553 | Q38: 9.494734869 | R38: 9051.565698 | S38: 37.89709473 | T38: 10.52697076 | U38: 11805.58619 | V38: 49.42762756 | W38: 13.72989654 | AC38: 100.0000665
A39: 28 | B39: 94.4597168 | C39: 2.93028116 | D39: 0.7535587 | E39: 0.07915597 | F39: 0.0779902 | G39: 0.01217568 | H39: 0.0156858 | I39: 0 | J39: 0.00174698 | L39: 1.33612216 | M39: 0.33360571 | N39: 0.70824665 | O39: 8164.642193 | P39: 34.18372345 | Q39: 9.495478736 | R39: 9052.164306 | S39: 37.89960098 | T39: 10.52766694 | U39: 11804.67871 | V39: 49.42382813 | W39: 13.72884115 | AC39: 100.0000392
A40: 29 | B40: 96.1882 | C40: 2.0721 | D40: 0.6594 | E40: 0.1046 | F40: 0.1031 | G40: 0.0041 | H40: 0.0205 | I40: 0.0145 | J40: 0.0047 | K40: 0.0076 | L40: 0.6366 | M40: 0.1845 | N40: 0.6982 | O40: =P40*238.8459 -> 8179.015115 | P40: 34.2439 | Q40: =P40/3.6 -> 9.512194444 | R40: =S40*238.8459 -> 9065.993249 | S40: 37.9575 | T40: =S40/3.6 -> 10.54375 | U40: 11908 | V40: 49.8549 | W40: =V40/3.6 -> 13.84858333 | X40: -20.6 | Y40: -2 | AC40: 99.9999
A41: 30 | O41: 8178.083616 | P41: 34.24 | Q41: =P41/3.6 -> 9.511111111 | R41: 9066.590364 | S41: 37.96 | T41: =S41/3.6 -> 10.54444444 | AC41: 0
A42: 31 | O42: 8179.015115 | P42: 34.2439 | Q42: =P42/3.6 -> 9.512194444 | R42: 9065.993249 | S42: 37.9575 | T42: =S42/3.6 -> 10.54375 | AC42: 0
A43: Рівень одоризації відповідає чинним нормативним документам | O43: =SUMPRODUCT(O12:O39,' розрахунок'!R7:R34)/' розрахунок'!R38 -> 8131.509313 | P43: =SUMPRODUCT(P12:P39,' розрахунок'!R7:R34)/' розрахунок'!R38 -> 34.04500271 | Q43: =SUMPRODUCT(Q12:Q39,' розрахунок'!R7:R34)/' розрахунок'!R38 -> 9.456945198 | R43: =SUMPRODUCT(R12:R39,' розрахунок'!R7:R34)/' розрахунок'!R38 -> 9014.081009 | S43: =SUMPRODUCT(S12:S39,' розрахунок'!R7:R34)/' розрахунок'!R38 -> 37.74015383 | T43: =SUMPRODUCT(T12:T39,' розрахунок'!R7:R34)/' розрахунок'!R38 -> 10.48337606
H44: Середньозважене значення теплоти згоряння:
B47: Начальник управління Северодонецького ЛВУМГ Головко Ю.О.
C48: Підрозділу підприємства, якому підпорядкована лабораторія | O48: прізвище | R48: підпис | V48: дата
B49: Інженер ІІ кат. ВХАЛ Єрьоменко М.О.
C50: Лабораторія, де здійснювалось вимірювання газу | O50: прізвище | R50: підпис | V50: дата
B51: Начальник служби метрології Левкович А.М.
C52: Підрозділу, відповідального за облік газу за маршрутом | O52: прізвище | R52: підпис | V52: дата

Sheet розрахунок (hidden)
A2: Додаток до Паспорту фізико-хімічних показників природного газу по маршруту № 677
A4: Число місяця | B4: Теплота згоряння вища, МДж/м3 | C4: Донецька область | Q4: Запорізька область | R4: Загальний обсяг газу, м3
C5: Обсяг газу переданого за добу, м3 | Q5: Обсяг газу переданого за добу, м3
C6: ГРС 1 м. Маріуполь | D6: АГНКС м.Маріуполь | E6: ПрАТ ММК ім. Ілліча | F6: ПрАТ "МК "АЗОВСТАЛЬ" | G6: ГРС 2 м.Маріуполь | H6: ПрАТ ММК ім. Ілліча | I6: ГРС смт.Володарське | J6: ГРС смт. Ялта | K6: ГРС смт. Мангуш | L6: ГРС с. Малинівка | M6: ГРС р-п Дзержинського | N6: ГРС Первомайське ПТФ | O6: ГРС р-п Маріупольский | P6: ГРП Юр'ївка | Q6: ГРС с. Червоне Поле
A7: 1 | B7: =паспорт!S12 -> 37.80708313 | C7: =Лист1!C3 -> 1136359.25 | D7: =Лист1!AL3 -> 537.44 | E7: =Лист1!AG3 -> 0 | F7: =Лист1!AB3 -> 988443.63 | G7: =Лист1!E3 -> 383507.97 | H7: =Лист1!AR3 -> 1131636.63 | I7: =Лист1!G3 -> 64677.05 | J7: =Лист1!U3 -> 27807.37 | K7: =Лист1!O3 -> 51891.45 | L7: =Лист1!M3 -> 10374.91 | M7: =Лист1!K3 -> 8083.18 | N7: =Лист1!Q3 -> 2486.17 | O7: =Лист1!I3 -> 29099.13 | P7: =Лист1!W3 -> 2170.74 | Q7: =Лист1!S3 -> 17001.08 | R7: =SUM(C7:Q7) -> 3854076
A8: 2 | B8: =паспорт!S13 -> 37.88996887 | C8: =Лист1!C4 -> 1065194.13 | D8: =Лист1!AL4 -> 881.04 | E8: =Лист1!AG4 -> 0 | F8: =Лист1!AB4 -> 1055508 | G8: =Лист1!E4 -> 349904.84 | H8: =Лист1!AR4 -> 1121541.13 | I8: =Лист1!G4 -> 59051.09 | J8: =Лист1!U4 -> 25854.32 | K8: =Лист1!O4 -> 47618.02 | L8: =Лист1!M4 -> 9381.21 | M8: =Лист1!K4 -> 7407.66 | N8: =Лист1!Q4 -> 2315.81 | O8: =Лист1!I4 -> 26840.43 | P8: =Лист1!W4 -> 2029.73 | Q8: =Лист1!S4 -> 15395.14 | R8: 3788922.55
A9: 3 | B9: =паспорт!S14 -> 37.89077377 | C9: =Лист1!C5 -> 1006612.38 | D9: =Лист1!AL5 -> 761.57 | E9: =Лист1!AG5 -> 0 | F9: =Лист1!AB5 -> 967628.88 | G9: =Лист1!E5 -> 348747 | H9: =Лист1!AR5 -> 1110917.63 | I9: =Лист1!G5 -> 56499.47 | J9: =Лист1!U5 -> 24934.71 | K9: =Лист1!O5 -> 45080.84 | L9: =Лист1!M5 -> 9149.59 | M9: =Лист1!K5 -> 7113.63 | N9: =Лист1!Q5 -> 2249.54 | O9: =Лист1!I5 -> 25424.93 | P9: =Лист1!W5 -> 1947.51 | Q9: =Лист1!S5 -> 14930.08 | R9: 3621997.76
A10: 4 | B10: =паспорт!S15 -> 37.79776382 | C10: =Лист1!C6 -> 1048828.38 | D10: =Лист1!AL6 -> 935.37 | E10: =Лист1!AG6 -> 0 | F10: =Лист1!AB6 -> 1024919.5 | G10: =Лист1!E6 -> 269882.66 | H10: =Лист1!AR6 -> 1109086.5 | I10: =Лист1!G6 -> 52879.79 | J10: =Лист1!U6 -> 23491.47 | K10: =Лист1!O6 -> 42074.61 | L10: =Лист1!M6 -> 8248.55 | M10: =Лист1!K6 -> 6646.92 | N10: =Лист1!Q6 -> 2121.93 | O10: =Лист1!I6 -> 23829.28 | P10: =Лист1!W6 -> 1801.55 | Q10: =Лист1!S6 -> 13508.08 | R10: 3628254.59
A11: 5 | B11: =паспорт!S16 -> 37.55888367 | C11: =Лист1!C7 -> 997339.81 | D11: =Лист1!AL7 -> 658.53 | E11: =Лист1!AG7 -> 0 | F11: =Лист1!AB7 -> 1133683.5 | G11: =Лист1!E7 -> 245009.34 | H11: =Лист1!AR7 -> 1109085.88 | I11: =Лист1!G7 -> 49145.4 | J11: =Лист1!U7 -> 21956.79 | K11: =Лист1!O7 -> 39604.68 | L11: =Лист1!M7 -> 7843.47 | M11: =Лист1!K7 -> 6126.33 | N11: =Лист1!Q7 -> 1923.29 | O11: =Лист1!I7 -> 22627.31 | P11: =Лист1!W7 -> 1713.57 | Q11: =Лист1!S7 -> 12827.2 | R11: 3649545.1
A12: 6 | B12: =паспорт!S17 -> 37.65888214 | C12: =Лист1!C8 -> 1006922.25 | D12: =Лист1!AL8 -> 962.88 | E12: =Лист1!AG8 -> 0 | F12: =Лист1!AB8 -> 1132727.25 | G12: =Лист1!E8 -> 280768.63 | H12: =Лист1!AR8 -> 1073999.13 | I12: =Лист1!G8 -> 51136.61 | J12: =Лист1!U8 -> 22747.3 | K12: =Лист1!O8 -> 42137.21 | L12: =Лист1!M8 -> 8146.06 | M12: =Лист1!K8 -> 6446.27 | N12: =Лист1!Q8 -> 2003.51 | O12: =Лист1!I8 -> 23561.82 | P12: =Лист1!W8 -> 1682.16 | Q12: =Лист1!S8 -> 13475.52 | R12: 3666716.6
A13: 7 | B13: =паспорт!S18 -> 37.81558228 | C13: =Лист1!C9 -> 1048331.75 | D13: =Лист1!AL9 -> 1547.01 | E13: =Лист1!AG9 -> 0 | F13: =Лист1!AB9 -> 1004811 | G13: =Лист1!E9 -> 405426.25 | H13: =Лист1!AR9 -> 1168156.25 | I13: =Лист1!G9 -> 61493.13 | J13: =Лист1!U9 -> 27186.94 | K13: =Лист1!O9 -> 50467.91 | L13: =Лист1!M9 -> 9758.55 | M13: =Лист1!K9 -> 7804.29 | N13: =Лист1!Q9 -> 2309.31 | O13: =Лист1!I9 -> 27854.87 | P13: =Лист1!W9 -> 1957.42 | Q13: =Лист1!S9 -> 16097.05 | R13: 3833201.73
A14: 8 | B14: =паспорт!S19 -> 37.67331314 | C14: =Лист1!C10 -> 1098478.25 | D14: =Лист1!AL10 -> 1266.17 | E14: =Лист1!AG10 -> 0 | F14: =Лист1!AB10 -> 1089054.63 | G14: =Лист1!E10 -> 436440.28 | H14: =Лист1!AR10 -> 1086083.5 | I14: =Лист1!G10 -> 65991.88 | J14: =Лист1!U10 -> 29732.31 | K14: =Лист1!O10 -> 54927.11 | L14: =Лист1!M10 -> 10286.31 | M14: =Лист1!K10 -> 8434.38 | N14: =Лист1!Q10 -> 2490.77 | O14: =Лист1!I10 -> 29796.72 | P14: =Лист1!W10 -> 2164.33 | Q14: =Лист1!S10 -> 17531.86 | R14: 3932678.5
A15: 9 | B15: =паспорт!S20 -> 37.69903564 | C15: =Лист1!C11 -> 1104000.63 | D15: =Лист1!AL11 -> 985.81 | E15: =Лист1!AG11 -> 0 | F15: =Лист1!AB11 -> 993084.38 | G15: =Лист1!E11 -> 433608.09 | H15: =Лист1!AR11 -> 1230788.38 | I15: =Лист1!G11 -> 65480.82 | J15: =Лист1!U11 -> 29171.15 | K15: =Лист1!O11 -> 54024.93 | L15: =Лист1!M11 -> 10509.77 | M15: =Лист1!K11 -> 8230.74 | N15: =Лист1!Q11 -> 2560.47 | O15: =Лист1!I11 -> 29756.4 | P15: =Лист1!W11 -> 2210.7 | Q15: =Лист1!S11 -> 17159.82 | R15: 3981572.09
A16: 10 | B16: =паспорт!S21 -> 37.79333115 | C16: =Лист1!C12 -> 1111066.13 | D16: =Лист1!AL12 -> 1155.85 | E16: =Лист1!AG12 -> 0 | F16: =Лист1!AB12 -> 1158325.75 | G16: =Лист1!E12 -> 433105.09 | H16: =Лист1!AR12 -> 1266380.5 | I16: =Лист1!G12 -> 65989.14 | J16: =Лист1!U12 -> 28931.25 | K16: =Лист1!O12 -> 53998.11 | L16: =Лист1!M12 -> 10515.35 | M16: =Лист1!K12 -> 8296.36 | N16: =Лист1!Q12 -> 2540.93 | O16: =Лист1!I12 -> 29398.95 | P16: =Лист1!W12 -> 2292.73 | Q16: =Лист1!S12 -> 17130.26 | R16: 4189126.4
A17: 11 | B17: =паспорт!S22 -> 37.69501877 | C17: =Лист1!C13 -> 1114095.13 | D17: =Лист1!AL13 -> 758.12 | E17: =Лист1!AG13 -> 0 | F17: =Лист1!AB13 -> 1230975.5 | G17: =Лист1!E13 -> 402761.56 | H17: =Лист1!AR13 -> 1226587.5 | I17: =Лист1!G13 -> 64339.38 | J17: =Лист1!U13 -> 28336.67 | K17: =Лист1!O13 -> 52056.86 | L17: =Лист1!M13 -> 10186.78 | M17: =Лист1!K13 -> 8113.26 | N17: =Лист1!Q13 -> 2518.89 | O17: =Лист1!I13 -> 28761.25 | P17: =Лист1!W13 -> 2242.59 | Q17: =Лист1!S13 -> 16678.46 | R17: 4188411.95
A18: 12 | B18: =паспорт!S23 -> 37.71234512 | C18: =Лист1!C14 -> 1099008.13 | D18: =Лист1!AL14 -> 692.61 | E18: =Лист1!AG14 -> 0 | F18: =Лист1!AB14 -> 1232752.88 | G18: =Лист1!E14 -> 372612.75 | H18: =Лист1!AR14 -> 1198165.63 | I18: =Лист1!G14 -> 61259.12 | J18: =Лист1!U14 -> 26619.69 | K18: =Лист1!O14 -> 48274.43 | L18: =Лист1!M14 -> 9559.1 | M18: =Лист1!K14 -> 7601.46 | N18: =Лист1!Q14 -> 2395.71 | O18: =Лист1!I14 -> 27092.13 | P18: =Лист1!W14 -> 2066.1 | Q18: =Лист1!S14 -> 15897.45 | R18: 4103997.19
A19: 13 | B19: =паспорт!S24 -> 37.65924835 | C19: =Лист1!C15 -> 1068082.5 | D19: =Лист1!AL15 -> 1027.68 | E19: =Лист1!AG15 -> 0 | F19: =Лист1!AB15 -> 1120937 | G19: =Лист1!E15 -> 343533.84 | H19: =Лист1!AR15 -> 1168443.38 | I19: =Лист1!G15 -> 57828.52 | J19: =Лист1!U15 -> 25392.49 | K19: =Лист1!O15 -> 46264.38 | L19: =Лист1!M15 -> 9382.96 | M19: =Лист1!K15 -> 7217.81 | N19: =Лист1!Q15 -> 2255.64 | O19: =Лист1!I15 -> 25544.18 | P19: =Лист1!W15 -> 1984.59 | Q19: =Лист1!S15 -> 15025.32 | R19: 3892920.29
A20: 14 | B20: =паспорт!S25 -> 37.51580048 | C20: =Лист1!C16 -> 1056439.5 | D20: =Лист1!AL16 -> 1090.06 | E20: =Лист1!AG16 -> 0 | F20: =Лист1!AB16 -> 1180773.63 | G20: =Лист1!E16 -> 368499.72 | H20: =Лист1!AR16 -> 1209915.25 | I20: =Лист1!G16 -> 59901.78 | J20: =Лист1!U16 -> 25562.12 | K20: =Лист1!O16 -> 48317.58 | L20: =Лист1!M16 -> 9580.03 | M20: =Лист1!K16 -> 7626.02 | N20: =Лист1!Q16 -> 2266.18 | O20: =Лист1!I16 -> 26661.79 | P20: =Лист1!W16 -> 2062.07 | Q20: =Лист1!S16 -> 15593.08 | R20: 4014288.81
A21: 15 | B21: =паспорт!S26 -> 37.6326561 | C21: =Лист1!C17 -> 1040600.19 | D21: =Лист1!AL17 -> 1019.11 | E21: =Лист1!AG17 -> 0 | F21: =Лист1!AB17 -> 1197196.38 | G21: =Лист1!E17 -> 307688.69 | H21: =Лист1!AR17 -> 1137146.38 | I21: =Лист1!G17 -> 56048.27 | J21: =Лист1!U17 -> 24690.05 | K21: =Лист1!O17 -> 45383.87 | L21: =Лист1!M17 -> 9008.06 | M21: =Лист1!K17 -> 7123.2 | N21: =Лист1!Q17 -> 2167.79 | O21: =Лист1!I17 -> 25147.44 | P21: =Лист1!W17 -> 1916.21 | Q21: =Лист1!S17 -> 14393.02 | R21: 3869528.66
A22: 16 | B22: =паспорт!S27 -> 37.83544159 | C22: =Лист1!C18 -> 1014819.75 | D22: =Лист1!AL18 -> 1245.27 | E22: =Лист1!AG18 -> 0 | F22: =Лист1!AB18 -> 1288462.5 | G22: =Лист1!E18 -> 349481.13 | H22: =Лист1!AR18 -> 1170255.38 | I22: =Лист1!G18 -> 57190.66 | J22: =Лист1!U18 -> 24645.81 | K22: =Лист1!O18 -> 45078.02 | L22: =Лист1!M18 -> 9208.63 | M22: =Лист1!K18 -> 7107.88 | N22: =Лист1!Q18 -> 2161.54 | O22: =Лист1!I18 -> 25477.51 | P22: =Лист1!W18 -> 1869.82 | Q22: =Лист1!S18 -> 14855.75 | R22: 4011859.65
A23: 17 | B23: =паспорт!S28 -> 37.76544189 | C23: =Лист1!C19 -> 1009355.63 | D23: =Лист1!AL19 -> 1006.49 | E23: =Лист1!AG19 -> 0 | F23: =Лист1!AB19 -> 1303112.25 | G23: =Лист1!E19 -> 343943.78 | H23: =Лист1!AR19 -> 1171909.75 | I23: =Лист1!G19 -> 56562.9 | J23: =Лист1!U19 -> 24746.66 | K23: =Лист1!O19 -> 44735.36 | L23: =Лист1!M19 -> 9081.36 | M23: =Лист1!K19 -> 7083.34 | N23: =Лист1!Q19 -> 2141.56 | O23: =Лист1!I19 -> 25277.81 | P23: =Лист1!W19 -> 1882.48 | Q23: =Лист1!S19 -> 14603.84 | R23: 4015443.21
A24: 18 | B24: =паспорт!S29 -> 37.49343109 | C24: =Лист1!C20 -> 993356.19 | D24: =Лист1!AL20 -> 733.35 | E24: =Лист1!AG20 -> 0 | F24: =Лист1!AB20 -> 1106082.25 | G24: =Лист1!E20 -> 301818.44 | H24: =Лист1!AR20 -> 1137556.5 | I24: =Лист1!G20 -> 53741.05 | J24: =Лист1!U20 -> 23447.2 | K24: =Лист1!O20 -> 42220.69 | L24: =Лист1!M20 -> 8377.7 | M24: =Лист1!K20 -> 6638.29 | N24: =Лист1!Q20 -> 2058 | O24: =Лист1!I20 -> 23931.39 | P24: =Лист1!W20 -> 1806.65 | Q24: =Лист1!S20 -> 13372 | R24: 3715139.7
A25: 19 | B25: =паспорт!S30 -> 37.6894 | C25: =Лист1!C21 -> 987988.44 | D25: =Лист1!AL21 -> 656.66 | E25: =Лист1!AG21 -> 0 | F25: =Лист1!AB21 -> 1053695.5 | G25: =Лист1!E21 -> 249793.36 | H25: =Лист1!AR21 -> 1184486.38 | I25: =Лист1!G21 -> 49851.55 | J25: =Лист1!U21 -> 21947.52 | K25: =Лист1!O21 -> 39500.12 | L25: =Лист1!M21 -> 7951.91 | M25: =Лист1!K21 -> 6263.32 | N25: =Лист1!Q21 -> 1943.74 | O25: =Лист1!I21 -> 22586.8 | P25: =Лист1!W21 -> 1705.81 | Q25: =Лист1!S21 -> 12726 | R25: 3641097.11
A26: 20 | B26: =паспорт!S31 -> 37.6894 | C26: =Лист1!C22 -> 832255.31 | D26: =Лист1!AL22 -> 880.77 | E26: =Лист1!AG22 -> 0 | F26: =Лист1!AB22 -> 1029317.63 | G26: =Лист1!E22 -> 289177.25 | H26: =Лист1!AR22 -> 1082392.75 | I26: =Лист1!G22 -> 43849.3 | J26: =Лист1!U22 -> 20466.25 | K26: =Лист1!O22 -> 36442.7 | L26: =Лист1!M22 -> 7274.65 | M26: =Лист1!K22 -> 5708.8 | N26: =Лист1!Q22 -> 1715.85 | O26: =Лист1!I22 -> 19885.54 | P26: =Лист1!W22 -> 1605.5 | Q26: =Лист1!S22 -> 12368.27 | R26: 3383340.57
A27: 21 | B27: =паспорт!S32 -> 37.6894 | C27: =Лист1!C23 -> 818456.56 | D27: =Лист1!AL23 -> 702.7 | E27: =Лист1!AG23 -> 0 | F27: =Лист1!AB23 -> 1038713.13 | G27: =Лист1!E23 -> 315139.22 | H27: =Лист1!AR23 -> 744555.13 | I27: =Лист1!G23 -> 45072.1 | J27: =Лист1!U23 -> 20810.89 | K27: =Лист1!O23 -> 36912.54 | L27: =Лист1!M23 -> 7151.77 | M27: =Лист1!K23 -> 5821.85 | N27: =Лист1!Q23 -> 1806.13 | O27: =Лист1!I23 -> 20360.3 | P27: =Лист1!W23 -> 1612.77 | Q27: =Лист1!S23 -> 12332.28 | R27: 3069447.37
A28: 22 | B28: =паспорт!S33 -> 37.6894 | C28: =Лист1!C24 -> 790915.88 | D28: =Лист1!AL24 -> 1303.58 | E28: =Лист1!AG24 -> 0 | F28: =Лист1!AB24 -> 972137.25 | G28: =Лист1!E24 -> 342813.72 | H28: =Лист1!AR24 -> 910317 | I28: =Лист1!G24 -> 45905.37 | J28: =Лист1!U24 -> 21166.59 | K28: =Лист1!O24 -> 37824.88 | L28: =Лист1!M24 -> 7220.86 | M28: =Лист1!K24 -> 5875.1 | N28: =Лист1!Q24 -> 1798.16 | O28: =Лист1!I24 -> 20653.9 | P28: =Лист1!W24 -> 1534.07 | Q28: =Лист1!S24 -> 12464.98 | R28: 3171931.34
A29: 23 | B29: =паспорт!S34 -> 37.6894 | C29: =Лист1!C25 -> 806941.44 | D29: =Лист1!AL25 -> 1120.95 | E29: =Лист1!AG25 -> 0 | F29: =Лист1!AB25 -> 1027499.38 | G29: =Лист1!E25 -> 326059.97 | H29: =Лист1!AR25 -> 1060479.63 | I29: =Лист1!G25 -> 46836.26 | J29: =Лист1!U25 -> 21565.71 | K29: =Лист1!O25 -> 37570.59 | L29: =Лист1!M25 -> 7461 | M29: =Лист1!K25 -> 5924.14 | N29: =Лист1!Q25 -> 1862.4 | O29: =Лист1!I25 -> 21305.34 | P29: =Лист1!W25 -> 1607.79 | Q29: =Лист1!S25 -> 12584.06 | R29: 3378818.66
A30: 24 | B30: =паспорт!S35 -> 37.97913742 | C30: =Лист1!C26 -> 758343 | D30: =Лист1!AL26 -> 935.01 | E30: =Лист1!AG26 -> 0 | F30: =Лист1!AB26 -> 1066260.88 | G30: =Лист1!E26 -> 348002.13 | H30: =Лист1!AR26 -> 1090712.25 | I30: =Лист1!G26 -> 43714.51 | J30: =Лист1!U26 -> 20931.9 | K30: =Лист1!O26 -> 36029.55 | L30: =Лист1!M26 -> 6731.69 | M30: =Лист1!K26 -> 5573.53 | N30: =Лист1!Q26 -> 1739.99 | O30: =Лист1!I26 -> 20015.58 | P30: =Лист1!W26 -> 1598.97 | Q30: =Лист1!S26 -> 11942.91 | R30: 3412531.9
A31: 25 | B31: =паспорт!S36 -> 37.87106705 | C31: =Лист1!C27 -> 784522.94 | D31: =Лист1!AL27 -> 822.24 | E31: =Лист1!AG27 -> 0 | F31: =Лист1!AB27 -> 1124768.5 | G31: =Лист1!E27 -> 341293.91 | H31: =Лист1!AR27 -> 1014667.56 | I31: =Лист1!G27 -> 45055.47 | J31: =Лист1!U27 -> 21089.92 | K31: =Лист1!O27 -> 36695.55 | L31: =Лист1!M27 -> 6760.24 | M31: =Лист1!K27 -> 5730.85 | N31: =Лист1!Q27 -> 1786.57 | O31: =Лист1!I27 -> 20385.54 | P31: =Лист1!W27 -> 1584.43 | Q31: =Лист1!S27 -> 12128.39 | R31: 3417292.11
A32: 26 | B32: =паспорт!S37 -> 37.82606506 | C32: =Лист1!C28 -> 786754.06 | D32: =Лист1!AL28 -> 610.52 | E32: =Лист1!AG28 -> 0 | F32: =Лист1!AB28 -> 1023781.44 | G32: =Лист1!E28 -> 345696.81 | H32: =Лист1!AR28 -> 904097.13 | I32: =Лист1!G28 -> 46153.91 | J32: =Лист1!U28 -> 20862.41 | K32: =Лист1!O28 -> 37498.6 | L32: =Лист1!M28 -> 7040.52 | M32: =Лист1!K28 -> 5741.73 | N32: =Лист1!Q28 -> 1802.11 | O32: =Лист1!I28 -> 20796.37 | P32: =Лист1!W28 -> 1560.44 | Q32: =Лист1!S28 -> 12113.64 | R32: 3214509.69
A33: 27 | B33: =паспорт!S38 -> 37.89709473 | C33: =Лист1!C29 -> 760273.31 | D33: =Лист1!AL29 -> 1092.22 | E33: =Лист1!AG29 -> 0 | F33: =Лист1!AB29 -> 922508.25 | G33: =Лист1!E29 -> 355665.03 | H33: =Лист1!AR29 -> 890539.81 | I33: =Лист1!G29 -> 46012.53 | J33: =Лист1!U29 -> 20768.5 | K33: =Лист1!O29 -> 36632.57 | L33: =Лист1!M29 -> 7144.26 | M33: =Лист1!K29 -> 5700.36 | N33: =Лист1!Q29 -> 1801.1 | O33: =Лист1!I29 -> 20396.33 | P33: =Лист1!W29 -> 1530.59 | Q33: =Лист1!S29 -> 12077.52 | R33: 3082142.38
A34: 28 | B34: =паспорт!S39 -> 37.89960098 | C34: =Лист1!C30 -> 692351.31 | D34: =Лист1!AL30 -> 1283.08 | E34: =Лист1!AG30 -> 0 | F34: =Лист1!AB30 -> 963702.13 | G34: =Лист1!E30 -> 363529.84 | H34: =Лист1!AR30 -> 875693.25 | I34: =Лист1!G30 -> 41221.1 | J34: =Лист1!U30 -> 18514.09 | K34: =Лист1!O30 -> 32898.41 | L34: =Лист1!M30 -> 6176.42 | M34: =Лист1!K30 -> 5107.15 | N34: =Лист1!Q30 -> 1626.35 | O34: =Лист1!I30 -> 18098.93 | P34: =Лист1!W30 -> 1370.65 | Q34: =Лист1!S30 -> 11223.23 | R34: 3032795.94
A35: 29 | B35: 37.9575 | C35: 104484.13 | D35: 2550.58 | E35: 172597.3 | F35: 6731.51 | G35: 28282.91 | H35: 71078.45 | I35: 16478.54 | J35: 0 | K35: 2663.42 | Q35: 34255.96 | R35: 439122.8
A36: 30 | B36: 37.96 | C36: 93755.22 | D36: 2251.65 | E36: 156928.03 | F36: 6054.5 | G36: 26299.84 | H36: 60324.38 | I36: 15516.28 | J36: 0 | K36: 2593.82 | Q36: 30650.76 | R36: 394374.48
A37: 31 | B37: 37.9575 | C37: 92050.88 | D37: 3124.98 | E37: 157999.45 | F37: 6122.1 | G37: 23698.82 | H37: 60708.33 | I37: 14948.5 | J37: 0 | K37: 3269.38 | Q37: 2593.82 | R37: 364516.26
A38: Загальний обсяг газу, м3 | C38: =SUM(C7:C34) -> 27037692.23 | D38: =SUM(D7:D34) -> 26672.09 | E38: 0 | F38: 30430863 | G38: 9653911.3 | H38: 30585596.19 | I38: 1512888.16 | J38: 673378.08 | K38: 1222161.57 | L38: =SUM(L7:L34) -> 239511.71 | M38: 190547.85 | N38: 58849.44 | O38: 680567.97 | P38: 51511.97 | Q38: 397436.29 | R38: =SUM(R7:R34) -> 102761587.8
A39: Енергія, МДж | C39: =SUMPRODUCT(B7:B34,C7:C34) -> 1020338278 | D39: =SUMPRODUCT(B7:B34,D7:D34) -> 1006795.934 | E39: =SUMPRODUCT(B7:B34,E7:E34) -> 0 | F39: =SUMPRODUCT(B7:B34,F7:F34) -> 1148457952 | G39: =SUMPRODUCT(B7:B34,G7:G34) -> 364415122.1 | H39: =SUMPRODUCT(B7:B34,H7:H34) -> 1154305283 | I39: =SUMPRODUCT(B7:B34,I7:I34) -> 57096567.83 | J39: =SUMPRODUCT(B7:B34,J7:J34) -> 25413925.32 | K39: =SUMPRODUCT(B7:B34,K7:K34) -> 46124500.42 | L39: =SUMPRODUCT(B7:B34,L7:L34) -> 9039015.127 | M39: =SUMPRODUCT(B7:B34,M7:M34) -> 7191266.453 | N39: =SUMPRODUCT(B7:B34,N7:N34) -> 2221018.838 | O39: =SUMPRODUCT(B7:B34,O7:O34) -> 25684709.92 | P39: =SUMPRODUCT(B7:B34,P7:P34) -> 1944067.998 | Q39: =SUMPRODUCT(B7:B34,Q7:Q34) -> 14999631.65 | R39: =SUMPRODUCT(B7:B34,R7:R34) -> 3878238134
A40: Теплота згоряння (середньозважене значення за місяць), МДж/м³ | C40: =C39/C38 -> 37.73762455 | D40: =D39/D38 -> 37.74717068 | E40: =E39/E38 ->  | F40: =F39/F38 -> 37.73990739 | G40: 37.74792525 | H40: 37.74015963 | I40: 37.74011149 | J40: 37.74094535 | K40: 37.74010045 | L40: =L39/L38 -> 37.7393453 | M40: 37.73995063 | N40: 37.74069622 | O40: 37.74010981 | P40: 37.74012133 | Q40: 37.74097138 | R40: 37.74015383
A41: Теплота згоряння (середньозважене значення за місяць), ккал/м³ | C41: =C40*238.8459 -> 9013.476898 | D41: =D40*238.8459 -> 9015.756954 | F41: 9014.022147 | G41: 9015.93718 | H41: 9014.082393 | I41: 9014.070895 | J41: 9014.270059 | K41: 9014.068258 | L41: =L40*238.8459 -> 9013.887893 | M41: 9014.032475 | N41: 9014.210555 | O41: 9014.070494 | P41: 9014.073246 | Q41: 9014.276277 | R41: 9014.081009
A42: Теплота згоряння (середньозважене значення за місяць), кВт*год./м³ | C42: =C40/3.6 -> 10.48267348 | D42: =D40/3.6 -> 10.48532519 | F42: 10.48330761 | G42: 10.48553479 | H42: 10.48337767 | I42: 10.4833643 | J42: 10.48359593 | K42: 10.48336124 | L42: =L40/3.6 -> 10.48315147 | M42: 10.48331962 | N42: 10.48352673 | O42: 10.48336384 | P42: 10.48336704 | Q42: 10.48360316 | R42: 10.48337606

Sheet додаток
A2: Додаток до Паспорту фізико-хімічних показників природного газу № 677
A4: Область | B4: ГРС, прямий споживач | C4: Cередньозважене значення вищої теплоти згоряння
C5: МДж/м³ | D5: ккал/м³ | E5: кВт*год./м³
A6: Донецька область | B6: =' розрахунок'!C6 -> ГРС 1 м. Маріуполь | C6: =' розрахунок'!C40 -> 37.73762455 | D6: =' розрахунок'!C41 -> 9013.476898 | E6: =' розрахунок'!C42 -> 10.48267348
B7: =' розрахунок'!D6 -> АГНКС м.Маріуполь | C7: =' розрахунок'!D40 -> 37.74717068 | D7: =' розрахунок'!D41 -> 9015.756954 | E7: =' розрахунок'!D42 -> 10.48532519
B8: =' розрахунок'!E6 -> ПрАТ ММК ім. Ілліча | C8: =' розрахунок'!E40 ->  | D8: =' розрахунок'!E41 ->  | E8: =' розрахунок'!E42 -> 
B9: =' розрахунок'!F6 -> ПрАТ "МК "АЗОВСТАЛЬ" | C9: =' розрахунок'!F40 -> 37.73990739 | D9: =' розрахунок'!F41 -> 9014.022147 | E9: =' розрахунок'!F42 -> 10.48330761
B10: =' розрахунок'!G6 -> ГРС 2 м.Маріуполь | C10: =' розрахунок'!G40 -> 37.74792525 | D10: =' розрахунок'!G41 -> 9015.93718 | E10: =' розрахунок'!G42 -> 10.48553479
B11: =' розрахунок'!H6 -> ПрАТ ММК ім. Ілліча | C11: =' розрахунок'!H40 -> 37.74015963 | D11: =' розрахунок'!H41 -> 9014.082393 | E11: =' розрахунок'!H42 -> 10.48337767
B12: =' розрахунок'!I6 -> ГРС смт.Володарське | C12: =' розрахунок'!I40 -> 37.74011149 | D12: =' розрахунок'!I41 -> 9014.070895 | E12: =' розрахунок'!I42 -> 10.4833643
B13: =' розрахунок'!J6 -> ГРС смт. Ялта | C13: =' розрахунок'!J40 -> 37.74094535 | D13: =' розрахунок'!J41 -> 9014.270059 | E13: =' розрахунок'!J42 -> 10.48359593
B14: =' розрахунок'!K6 -> ГРС смт. Мангуш | C14: =' розрахунок'!K40 -> 37.74010045 | D14: =' розрахунок'!K41 -> 9014.068258 | E14: =' розрахунок'!K42 -> 10.48336124
B15: =' розрахунок'!L6 -> ГРС с. Малинівка | C15: =' розрахунок'!L40 -> 37.7393453 | D15: =' розрахунок'!L41 -> 9013.887893 | E15: =' розрахунок'!L42 -> 10.48315147
B16: =' розрахунок'!M6 -> ГРС р-п Дзержинського | C16: =' розрахунок'!M40 -> 37.73995063 | D16: =' розрахунок'!M41 -> 9014.032475 | E16: =' розрахунок'!M42 -> 10.48331962
B17: =' розрахунок'!N6 -> ГРС Первомайське ПТФ | C17: =' розрахунок'!N40 -> 37.74069622 | D17: =' розрахунок'!N41 -> 9014.210555 | E17: =' розрахунок'!N42 -> 10.48352673
B18: =' розрахунок'!O6 -> ГРС р-п Маріупольский | C18: =' розрахунок'!O40 -> 37.74010981 | D18: =' розрахунок'!O41 -> 9014.070494 | E18: =' розрахунок'!O42 -> 10.48336384
B19: =' розрахунок'!P6 -> ГРП Юр'ївка | C19: =' розрахунок'!P40 -> 37.74012133 | D19: =' розрахунок'!P41 -> 9014.073246 | E19: =' розрахунок'!P42 -> 10.48336704
A20: Запорізька область | B20: =' розрахунок'!Q6 -> ГРС с. Червоне Поле | C20: =' розрахунок'!Q40 -> 37.74097138 | D20: =' розрахунок'!Q41 -> 9014.276277 | E20: =' розрахунок'!Q42 -> 10.48360316
A21: Середньозважене значення вищої теплоти згоряння по маршруту № 677 | C21: =AVERAGE(C9:C20) -> 37.74086202 | D21: =AVERAGE(D9:D20) -> 9014.250156 | E21: 10.48357278
A25: Начальник управління Северодонецького ЛВУМГ Головко Ю.О.
A26: Підрозділу підприємства, якому підпорядкована лабораторія | D26: прізвище | E26: підпис | F26: дата
A27: Інженер ІІ кат. ВХАЛ Єрьоменко М.О.
A28: Лабораторія, де здійснювалось вимірювання газу | D28: прізвище | E28: підпис | F28: дата
A29: Начальник служби метрології Левкович А.М.
A30: Підрозділу, відповідального за облік газу за маршрутом | D30: прізвище | E30: підпис | F30: дата

Sheet variablesList (hidden)
A1: 3 | B1: x:\gaysin | C1: 10, 11, 24, 25, 127, 128, 132, 180, 207, 215 | D1: x:\
B2: x:\Illinci
B3: x:\Talne

Sheet Лист1
A1: подобъектов объекта ПАО МАРИУПОЛЬГАЗ (осн.) за 2/17. | Z1: подобъектов объекта ГРС-1 г.Мариуполь(2) (осн.) за 2/17. | AE1: подобъектов объекта ГРС 1 г.Мариуполь (4) (осн.) за 2/17. | AJ1: подобъектов объекта ГРС-1 г.Мариуполь(3) (осн.) за 2/17. | AP1: подобъектов объекта к-т Ильича (осн.) за 2/17.
A2: День | C2: БЫТ | E2: БЫТ(2) | G2: Володарское | I2: Мариупольский | K2: Дзержинского | M2: Малиновка | O2: Мангуш | Q2: ПТФ | S2: Урзуф | U2: Ялта | W2: Юрьевка | Y2: ПАО МАРИУПОЛЬГАЗ | Z2: День | AB2: к-т Азовсталь | AD2: ГРС-1 г.Мариуполь(2) | AE2: День | AG2: к-т Ильича | AI2: ГРС 1 г.Мариуполь (4) | AJ2: День | AL2: АГНКС | AN2: ГРС-1 г.Мариуполь(3) | AP2: День | AR2: к-т Ильича
A3: 1 | B3: B | C3: 1136359.25 | D3: B | E3: 383507.97 | F3: B | G3: 64677.05 | H3: B | I3: 29099.13 | J3: B | K3: 8083.18 | L3: B | M3: 10374.91 | O3: 51891.45 | P3: B | Q3: 2486.17 | R3: B | S3: 17001.08 | T3: B | U3: 27807.37 | V3: B | W3: 2170.74 | X3: B | Y3: 1733458.29 | Z3: 1 | AA3: B | AB3: 988443.63 | AC3: B | AD3: 988443.63 | AE3: 1 | AG3: 0 | AI3: 0 | AJ3: 1 | AK3: AB | AL3: 537.44 | AM3: AB | AN3: 537.44 | AP3: 1 | AQ3: B | AR3: 1131636.63
A4: 2 | B4: B | C4: 1065194.13 | D4: B | E4: 349904.84 | F4: AB | G4: 59051.09 | H4: B | I4: 26840.43 | J4: B | K4: 7407.66 | L4: B | M4: 9381.21 | O4: 47618.02 | P4: B | Q4: 2315.81 | R4: B | S4: 15395.14 | T4: B | U4: 25854.32 | V4: B | W4: 2029.73 | X4: AB | Y4: 1610992.38 | Z4: 2 | AA4: B | AB4: 1055508 | AC4: B | AD4: 1055508 | AE4: 2 | AG4: 0 | AI4: 0 | AJ4: 2 | AK4: AB | AL4: 881.04 | AM4: AB | AN4: 881.04 | AP4: 2 | AQ4: B | AR4: 1121541.13
A5: 3 | B5: B | C5: 1006612.38 | D5: B | E5: 348747 | F5: B | G5: 56499.47 | H5: B | I5: 25424.93 | J5: B | K5: 7113.63 | L5: B | M5: 9149.59 | O5: 45080.84 | P5: B | Q5: 2249.54 | R5: B | S5: 14930.08 | T5: B | U5: 24934.71 | V5: B | W5: 1947.51 | X5: B | Y5: 1542689.67 | Z5: 3 | AA5: B | AB5: 967628.88 | AC5: B | AD5: 967628.88 | AE5: 3 | AG5: 0 | AI5: 0 | AJ5: 3 | AK5: AB | AL5: 761.57 | AM5: AB | AN5: 761.57 | AP5: 3 | AQ5: B | AR5: 1110917.63
A6: 4 | B6: B | C6: 1048828.38 | D6: B | E6: 269882.66 | F6: B | G6: 52879.79 | H6: B | I6: 23829.28 | J6: B | K6: 6646.92 | L6: B | M6: 8248.55 | O6: 42074.61 | P6: B | Q6: 2121.93 | R6: B | S6: 13508.08 | T6: B | U6: 23491.47 | V6: B | W6: 1801.55 | X6: B | Y6: 1493313.21 | Z6: 4 | AA6: B | AB6: 1024919.5 | AC6: B | AD6: 1024919.5 | AE6: 4 | AF6: B | AG6: 0 | AH6: B | AI6: 0 | AJ6: 4 | AK6: AB | AL6: 935.37 | AM6: AB | AN6: 935.37 | AP6: 4 | AQ6: B | AR6: 1109086.5
A7: 5 | B7: B | C7: 997339.81 | D7: AB | E7: 245009.34 | F7: B | G7: 49145.4 | H7: B | I7: 22627.31 | J7: B | K7: 6126.33 | L7: B | M7: 7843.47 | O7: 39604.68 | P7: B | Q7: 1923.29 | R7: B | S7: 12827.2 | T7: B | U7: 21956.79 | V7: B | W7: 1713.57 | X7: AB | Y7: 1406117.2 | Z7: 5 | AA7: B | AB7: 1133683.5 | AC7: B | AD7: 1133683.5 | AE7: 5 | AG7: 0 | AI7: 0 | AJ7: 5 | AK7: AB | AL7: 658.53 | AM7: AB | AN7: 658.53 | AP7: 5 | AQ7: B | AR7: 1109085.88
A8: 6 | B8: B | C8: 1006922.25 | D8: B | E8: 280768.63 | F8: B | G8: 51136.61 | H8: B | I8: 23561.82 | J8: B | K8: 6446.27 | L8: B | M8: 8146.06 | O8: 42137.21 | P8: B | Q8: 2003.51 | R8: B | S8: 13475.52 | T8: B | U8: 22747.3 | V8: B | W8: 1682.16 | X8: B | Y8: 1459027.34 | Z8: 6 | AA8: B | AB8: 1132727.25 | AC8: B | AD8: 1132727.25 | AE8: 6 | AG8: 0 | AI8: 0 | AJ8: 6 | AK8: AB | AL8: 962.88 | AM8: AB | AN8: 962.88 | AP8: 6 | AQ8: B | AR8: 1073999.13
A9: 7 | B9: B | C9: 1048331.75 | D9: B | E9: 405426.25 | F9: B | G9: 61493.13 | H9: B | I9: 27854.87 | J9: B | K9: 7804.29 | L9: B | M9: 9758.55 | O9: 50467.91 | P9: B | Q9: 2309.31 | R9: B | S9: 16097.05 | T9: B | U9: 27186.94 | V9: B | W9: 1957.42 | X9: B | Y9: 1658687.49 | Z9: 7 | AA9: B | AB9: 1004811 | AC9: B | AD9: 1004811 | AE9: 7 | AG9: 0 | AI9: 0 | AJ9: 7 | AK9: AB | AL9: 1547.01 | AM9: AB | AN9: 1547.01 | AP9: 7 | AQ9: B | AR9: 1168156.25
A10: 8 | B10: B | C10: 1098478.25 | D10: B | E10: 436440.28 | F10: B | G10: 65991.88 | H10: B | I10: 29796.72 | J10: B | K10: 8434.38 | L10: B | M10: 10286.31 | O10: 54927.11 | P10: B | Q10: 2490.77 | R10: B | S10: 17531.86 | T10: B | U10: 29732.31 | V10: B | W10: 2164.33 | X10: B | Y10: 1756274.19 | Z10: 8 | AA10: B | AB10: 1089054.63 | AC10: B | AD10: 1089054.63 | AE10: 8 | AF10: B | AG10: 0 | AH10: B | AI10: 0 | AJ10: 8 | AK10: AB | AL10: 1266.17 | AM10: AB | AN10: 1266.17 | AP10: 8 | AQ10: B | AR10: 1086083.5
A11: 9 | B11: B | C11: 1104000.63 | D11: B | E11: 433608.09 | F11: B | G11: 65480.82 | H11: B | I11: 29756.4 | J11: B | K11: 8230.74 | L11: B | M11: 10509.77 | O11: 54024.93 | P11: B | Q11: 2560.47 | R11: B | S11: 17159.82 | T11: B | U11: 29171.15 | V11: B | W11: 2210.7 | X11: B | Y11: 1756713.52 | Z11: 9 | AA11: B | AB11: 993084.38 | AC11: B | AD11: 993084.38 | AE11: 9 | AG11: 0 | AI11: 0 | AJ11: 9 | AK11: AB | AL11: 985.81 | AM11: AB | AN11: 985.81 | AP11: 9 | AQ11: B | AR11: 1230788.38
A12: 10 | B12: B | C12: 1111066.13 | D12: B | E12: 433105.09 | F12: AB | G12: 65989.14 | H12: B | I12: 29398.95 | J12: B | K12: 8296.36 | L12: B | M12: 10515.35 | O12: 53998.11 | P12: B | Q12: 2540.93 | R12: B | S12: 17130.26 | T12: B | U12: 28931.25 | V12: B | W12: 2292.73 | X12: AB | Y12: 1763264.3 | Z12: 10 | AA12: B | AB12: 1158325.75 | AC12: B | AD12: 1158325.75 | AE12: 10 | AG12: 0 | AI12: 0 | AJ12: 10 | AK12: AB | AL12: 1155.85 | AM12: AB | AN12: 1155.85 | AP12: 10 | AQ12: B | AR12: 1266380.5
A13: 11 | B13: B | C13: 1114095.13 | D13: B | E13: 402761.56 | F13: B | G13: 64339.38 | H13: B | I13: 28761.25 | J13: B | K13: 8113.26 | L13: B | M13: 10186.78 | O13: 52056.86 | P13: B | Q13: 2518.89 | R13: B | S13: 16678.46 | T13: B | U13: 28336.67 | V13: B | W13: 2242.59 | X13: B | Y13: 1730090.83 | Z13: 11 | AA13: B | AB13: 1230975.5 | AC13: B | AD13: 1230975.5 | AE13: 11 | AG13: 0 | AI13: 0 | AJ13: 11 | AK13: AB | AL13: 758.12 | AM13: AB | AN13: 758.12 | AP13: 11 | AQ13: B | AR13: 1226587.5
A14: 12 | B14: B | C14: 1099008.13 | D14: B | E14: 372612.75 | F14: B | G14: 61259.12 | H14: B | I14: 27092.13 | J14: B | K14: 7601.46 | L14: B | M14: 9559.1 | O14: 48274.43 | P14: B | Q14: 2395.71 | R14: B | S14: 15897.45 | T14: B | U14: 26619.69 | V14: B | W14: 2066.1 | X14: B | Y14: 1672386.06 | Z14: 12 | AA14: B | AB14: 1232752.88 | AC14: B | AD14: 1232752.88 | AE14: 12 | AG14: 0 | AI14: 0 | AJ14: 12 | AK14: AB | AL14: 692.61 | AM14: AB | AN14: 692.61 | AP14: 12 | AQ14: B | AR14: 1198165.63
A15: 13 | C15: 1068082.5 | E15: 343533.84 | F15: B | G15: 57828.52 | I15: 25544.18 | K15: 7217.81 | M15: 9382.96 | O15: 46264.38 | Q15: 2255.64 | S15: 15025.32 | U15: 25392.49 | W15: 1984.59 | X15: B | Y15: 1602512.23 | Z15: 13 | AB15: 1120937 | AD15: 1120937 | AE15: 13 | AG15: 0 | AI15: 0 | AJ15: 13 | AK15: A | AL15: 1027.68 | AM15: A | AN15: 1027.68 | AP15: 13 | AR15: 1168443.38
A16: 14 | B16: B | C16: 1056439.5 | D16: B | E16: 368499.72 | F16: B | G16: 59901.78 | H16: B | I16: 26661.79 | J16: B | K16: 7626.02 | L16: B | M16: 9580.03 | O16: 48317.58 | P16: AB | Q16: 2266.18 | R16: B | S16: 15593.08 | T16: B | U16: 25562.12 | V16: B | W16: 2062.07 | X16: AB | Y16: 1622509.87 | Z16: 14 | AA16: B | AB16: 1180773.63 | AC16: B | AD16: 1180773.63 | AE16: 14 | AG16: 0 | AI16: 0 | AJ16: 14 | AK16: AB | AL16: 1090.06 | AM16: AB | AN16: 1090.06 | AP16: 14 | AQ16: B | AR16: 1209915.25
A17: 15 | B17: B | C17: 1040600.19 | D17: B | E17: 307688.69 | F17: B | G17: 56048.27 | H17: B | I17: 25147.44 | J17: B | K17: 7123.2 | L17: B | M17: 9008.06 | O17: 45383.87 | P17: B | Q17: 2167.79 | R17: B | S17: 14393.02 | T17: B | U17: 24690.05 | V17: B | W17: 1916.21 | X17: B | Y17: 1534166.8 | Z17: 15 | AA17: B | AB17: 1197196.38 | AC17: B | AD17: 1197196.38 | AE17: 15 | AG17: 0 | AI17: 0 | AJ17: 15 | AK17: AB | AL17: 1019.11 | AM17: AB | AN17: 1019.11 | AP17: 15 | AQ17: B | AR17: 1137146.38
A18: 16 | B18: B | C18: 1014819.75 | D18: ABC | E18: 349481.13 | F18: B | G18: 57190.66 | H18: B | I18: 25477.51 | J18: B | K18: 7107.88 | L18: B | M18: 9208.63 | O18: 45078.02 | P18: B | Q18: 2161.54 | R18: B | S18: 14855.75 | T18: B | U18: 24645.81 | V18: B | W18: 1869.82 | X18: ABC | Y18: 1551896.5 | Z18: 16 | AA18: B | AB18: 1288462.5 | AC18: B | AD18: 1288462.5 | AE18: 16 | AF18: B | AG18: 0 | AH18: B | AI18: 0 | AJ18: 16 | AK18: AB | AL18: 1245.27 | AM18: AB | AN18: 1245.27 | AP18: 16 | AQ18: B | AR18: 1170255.38
A19: 17 | B19: B | C19: 1009355.63 | D19: B | E19: 343943.78 | F19: B | G19: 56562.9 | H19: B | I19: 25277.81 | J19: B | K19: 7083.34 | L19: B | M19: 9081.36 | O19: 44735.36 | P19: B | Q19: 2141.56 | R19: B | S19: 14603.84 | T19: B | U19: 24746.66 | V19: B | W19: 1882.48 | X19: B | Y19: 1539414.73 | Z19: 17 | AA19: B | AB19: 1303112.25 | AC19: B | AD19: 1303112.25 | AE19: 17 | AG19: 0 | AI19: 0 | AJ19: 17 | AK19: AB | AL19: 1006.49 | AM19: AB | AN19: 1006.49 | AP19: 17 | AQ19: B | AR19: 1171909.75
A20: 18 | B20: B | C20: 993356.19 | D20: B | E20: 301818.44 | F20: B | G20: 53741.05 | H20: B | I20: 23931.39 | J20: B | K20: 6638.29 | L20: B | M20: 8377.7 | O20: 42220.69 | P20: B | Q20: 2058 | R20: B | S20: 13372 | T20: B | U20: 23447.2 | V20: B | W20: 1806.65 | X20: B | Y20: 1470767.59 | Z20: 18 | AA20: B | AB20: 1106082.25 | AC20: B | AD20: 1106082.25 | AE20: 18 | AG20: 0 | AI20: 0 | AJ20: 18 | AK20: AB | AL20: 733.35 | AM20: AB | AN20: 733.35 | AP20: 18 | AQ20: B | AR20: 1137556.5
A21: 19 | B21: B | C21: 987988.44 | D21: B | E21: 249793.36 | F21: B | G21: 49851.55 | H21: B | I21: 22586.8 | J21: B | K21: 6263.32 | L21: B | M21: 7951.91 | O21: 39500.12 | P21: B | Q21: 1943.74 | R21: B | S21: 12726 | T21: B | U21: 21947.52 | V21: B | W21: 1705.81 | X21: B | Y21: 1402258.57 | Z21: 19 | AA21: B | AB21: 1053695.5 | AC21: B | AD21: 1053695.5 | AE21: 19 | AG21: 0 | AI21: 0 | AJ21: 19 | AK21: AB | AL21: 656.66 | AM21: AB | AN21: 656.66 | AP21: 19 | AQ21: B | AR21: 1184486.38
A22: 20 | B22: A | C22: 832255.31 | E22: 289177.25 | G22: 43849.3 | I22: 19885.54 | K22: 5708.8 | M22: 7274.65 | O22: 36442.7 | Q22: 1715.85 | S22: 12368.27 | U22: 20466.25 | W22: 1605.5 | X22: A | Y22: 1270749.44 | Z22: 20 | AB22: 1029317.63 | AD22: 1029317.63 | AE22: 20 | AG22: 0 | AI22: 0 | AJ22: 20 | AK22: A | AL22: 880.77 | AM22: A | AN22: 880.77 | AP22: 20 | AR22: 1082392.75
A23: 21 | C23: 818456.56 | E23: 315139.22 | G23: 45072.1 | I23: 20360.3 | K23: 5821.85 | L23: A C | M23: 7151.77 | O23: 36912.54 | P23: A | Q23: 1806.13 | S23: 12332.28 | U23: 20810.89 | W23: 1612.77 | X23: A C | Y23: 1285476.4 | Z23: 21 | AB23: 1038713.13 | AD23: 1038713.13 | AE23: 21 | AG23: 0 | AI23: 0 | AJ23: 21 | AK23: A | AL23: 702.7 | AM23: A | AN23: 702.7 | AP23: 21 | AR23: 744555.13
A24: 22 | C24: 790915.88 | E24: 342813.72 | G24: 45905.37 | I24: 20653.9 | K24: 5875.1 | M24: 7220.86 | O24: 37824.88 | Q24: 1798.16 | S24: 12464.98 | U24: 21166.59 | W24: 1534.07 | Y24: 1288173.53 | Z24: 22 | AB24: 972137.25 | AD24: 972137.25 | AE24: Итого | AF24: B | AG24: 0 | AH24: B | AI24: 0 | AJ24: 22 | AK24: A | AL24: 1303.58 | AM24: A | AN24: 1303.58 | AP24: 22 | AR24: 910317
A25: 23 | C25: 806941.44 | D25: A | E25: 326059.97 | G25: 46836.26 | I25: 21305.34 | K25: 5924.14 | M25: 7461 | O25: 37570.59 | Q25: 1862.4 | S25: 12584.06 | U25: 21565.71 | W25: 1607.79 | X25: A | Y25: 1289718.69 | Z25: 23 | AB25: 1027499.38 | AD25: 1027499.38 | AJ25: 23 | AK25: A | AL25: 1120.95 | AM25: A | AN25: 1120.95 | AP25: 23 | AR25: 1060479.63
A26: 24 | B26: B | C26: 758343 | D26: B | E26: 348002.13 | F26: AB | G26: 43714.51 | H26: B | I26: 20015.58 | J26: B | K26: 5573.53 | L26: B | M26: 6731.69 | O26: 36029.55 | P26: B | Q26: 1739.99 | R26: B | S26: 11942.91 | T26: B | U26: 20931.9 | V26: B | W26: 1598.97 | X26: AB | Y26: 1254623.76 | Z26: 24 | AA26: B | AB26: 1066260.88 | AC26: B | AD26: 1066260.88 | AJ26: 24 | AK26: AB | AL26: 935.01 | AM26: AB | AN26: 935.01 | AP26: 24 | AQ26: B | AR26: 1090712.25
A27: 25 | B27: B | C27: 784522.94 | D27: B | E27: 341293.91 | F27: AB | G27: 45055.47 | H27: B | I27: 20385.54 | J27: B | K27: 5730.85 | L27: B | M27: 6760.24 | O27: 36695.55 | P27: B | Q27: 1786.57 | R27: B | S27: 12128.39 | T27: B | U27: 21089.92 | V27: B | W27: 1584.43 | X27: AB | Y27: 1277033.81 | Z27: 25 | AA27: B | AB27: 1124768.5 | AC27: B | AD27: 1124768.5 | AJ27: 25 | AK27: AB | AL27: 822.24 | AM27: AB | AN27: 822.24 | AP27: 25 | AQ27: B | AR27: 1014667.56
A28: 26 | B28: B | C28: 786754.06 | D28: B | E28: 345696.81 | F28: AB | G28: 46153.91 | H28: B | I28: 20796.37 | J28: B | K28: 5741.73 | L28: B | M28: 7040.52 | O28: 37498.6 | P28: B | Q28: 1802.11 | R28: B | S28: 12113.64 | T28: B | U28: 20862.41 | V28: B | W28: 1560.44 | X28: AB | Y28: 1286020.6 | Z28: 26 | AA28: B | AB28: 1023781.44 | AC28: B | AD28: 1023781.44 | AJ28: 26 | AK28: AB | AL28: 610.52 | AM28: AB | AN28: 610.52 | AP28: 26 | AQ28: B | AR28: 904097.13
A29: 27 | B29: B | C29: 760273.31 | D29: B | E29: 355665.03 | F29: AB | G29: 46012.53 | H29: B | I29: 20396.33 | J29: B | K29: 5700.36 | L29: B | M29: 7144.26 | O29: 36632.57 | P29: B | Q29: 1801.1 | R29: B | S29: 12077.52 | T29: B | U29: 20768.5 | V29: B | W29: 1530.59 | X29: AB | Y29: 1268002.11 | Z29: 27 | AA29: B | AB29: 922508.25 | AC29: B | AD29: 922508.25 | AJ29: 27 | AK29: AB | AL29: 1092.22 | AM29: AB | AN29: 1092.22 | AP29: 27 | AQ29: AB | AR29: 890539.81
A30: 28 | B30: B | C30: 692351.31 | D30: ABC | E30: 363529.84 | F30: AB | G30: 41221.1 | H30: B | I30: 18098.93 | J30: B | K30: 5107.15 | L30: B | M30: 6176.42 | O30: 32898.41 | P30: B | Q30: 1626.35 | R30: B | S30: 11223.23 | T30: B | U30: 18514.09 | V30: B | W30: 1370.65 | X30: ABC | Y30: 1192117.47 | Z30: 28 | AA30: B | AB30: 963702.13 | AC30: B | AD30: 963702.13 | AJ30: 28 | AK30: AB | AL30: 1283.08 | AM30: AB | AN30: 1283.08 | AP30: 28 | AQ30: ABC | AR30: 875693.25
A31: Итого | B31: AB | C31: 27037692.19 | D31: ABC | E31: 9653911,30* | F31: AB | G31: 1512888.15 | H31: B | I31: 680567.96 | J31: B | K31: 190547.85 | L31: ABC | M31: 239511,69* | O31: 1222161.6 | P31: AB | Q31: 58849.42 | R31: B | S31: 397436.32 | T31: B | U31: 673378.11 | V31: B | W31: 51511.97 | X31: ABC | Y31: 41718456,56* | Z31: Итого | AA31: B | AB31: 30430862.94 | AC31: B | AD31: 30430862.94 | AJ31: Итого | AK31: AB | AL31: 26672.09 | AM31: AB | AN31: 26672.09 | AP31: Итого | AQ31: ABC | AR31: 30585596,13*
